Cogmind - Beta 13 @@@ ROGUE MODE // 2024.07.02 @ 12:45:05 Player: Mr.Morel Result: Self-destructed Performance ------------- Evolutions (1) 500 Regions Visited (2) 400 Robots Destroyed (20) 100 Value Destroyed (584) 584 Prototype IDs (0) 0 Alien Tech Used (0) 0 Bonus (0) 0 TOTAL SCORE: 1584 Bonus ------- None Cogmind --------- Core Integrity 58/400 Matter 270/300 Energy 100/100 System Corruption 0% Temperature Warm (113) Movement Core (100) Ox1 Location -9/Materials Parts ------- > --- POWER (1) -------- (None) > --- PROPULSION (3) --- (None) > --- UTILITY (3) ------ Small Storage Unit > --- WEAPON (2) ------- (None) > --- INVENTORY (8) ---- Light Ion Engine Light Ion Engine Aluminum Leg Aluminum Leg Aluminum Leg Hardened Light Armor Plating Hardened Light Armor Plating Shield Generator Peak State ------------ > --- POWER ------------ Light Ion Engine > --- PROPULSION ------- Aluminum Leg Aluminum Leg Aluminum Leg > --- UTILITY ---------- Heat Sink Small Storage Unit Hardened Light Armor Plating > --- WEAPON ----------- Particle Gun EMP Blaster > --- INVENTORY -------- Aluminum Leg Aluminum Leg Targeting Computer Hardened Light Armor Plating Shield Generator Light Assault Rifle [Rating: 12] Favorites ----------- Power Light Ion Engine Engine Light Ion Engine Propulsion Aluminum Leg Leg Aluminum Leg Hover Unit Backup Propulsion I Utility Small Storage Unit Device Heat Sink Storage Small Storage Unit Processor Targeting Computer Protection Hardened Light Armor Plating Weapon Light Assault Rifle Energy Gun Particle Gun Ballistic Gun Light Assault Rifle Launcher EMP Blaster Build | -11 -10 -9 ------- Run | Yrd Mat Mat Slots Evolved 2 | . . 2 Power . | . . . Propulsion 1 | . . 1 Utility 1 | . . 1 Weapon . | . . . Parts Attached 32 | 6 6 20 Power 6 | 1 2 3 Engine 6 | 1 2 3 Core . | . . . Reactor . | . . . Propulsion 14 | 2 2 10 Treads . | . . . Leg 11 | 2 2 7 Wheel . | . . . Hover 3 | . . 3 Flight . | . . . Utility 4 | 1 1 2 Device 1 | . 1 . Storage 1 | 1 . . Processor 1 | . . 1 Hackware . | . . . Protection 1 | . . 1 Artifact . | . . . Weapon 8 | 2 1 5 Energy Gun 5 | 1 1 3 Energy Cannon . | . . . Ballistic Gun 2 | 1 . 1 Ballistic Cannon . | . . . Launcher 1 | . . 1 Special Weapon . | . . . Impact Weapon . | . . . Slashing Weapon . | . . . Piercing Weapon . | . . . Special Melee Weapon . | . . . Unidentified Prototypes . | . . . Parts Lost 15 | . 2 13 Power 2 | . 1 1 Propulsion 5 | . . 5 Utility 3 | . . 3 Weapon 5 | . 1 4 Highest Loss Streak 8 | . 1 8 To Critical Strikes . | . . . Average Slot Usage (%) 91 | . 90 91 Engine 11 | . 13 10 Leg 26 | . 28 24 Hover 2 | . . 4 Device 7 | . 9 5 Storage 12 | . 14 11 Processor 1 | . . 2 Protection 6 | . . 10 Energy Gun 11 | . 10 12 Ballistic Gun 8 | . 14 4 Launcher 2 | . . 3 Naked Turns . | . . . Heaviest Build 23 | 11 14 23 Greatest Support 30 | 20 20 30 Greatest Overweight (x) 1 | . . 1 Average Overweight (x) . | . . . Largest Inventory Capacity 8 | 8 8 8 Average Capacity 7 | 6 8 8 Most Carried 8 | 3 7 8 Average Carried 4 | . 2 6 Final Capacity 8 | 8 8 8 Final Carried 8 | . 7 8 Class Distribution -------------------- 74% | Mutant 25% | Scavenger-Mutant Dominant Class ---------------- Mutant | -10/Materials Mutant | -9/Materials Resources | -11 -10 -9 ----------- Run | Yrd Mat Mat Matter Collected 488 | 216 118 154 Remotely . | . . . Salvage Created 742 | . 257 485 Parts 48 | . 18 30 Haulers Intercepted . | . . . Recyclers Shooed 1 | . . 1 Parts Field Recycled . | . . . Retrieved Matter . | . . . Parts Self-Destructed . | . . . Prevented . | . . . Kills | -11 -10 -9 ------- Run | Yrd Mat Mat Combat Hostiles Destroyed 18 | . 5 13 Guns 14 | . 5 9 AOE 4 | . . 4 Classes Destroyed 5 | . 2 3 Recycler 1 | . . 1 Watcher 1 | . 1 . Swarmer 5 | . . 5 Grunt 12 | . 5 7 Sentry 1 | . . 1 Best Kill Streak 4 | . 3 4 Combat Bots Only 3 | . 3 3 Max Kills in Single Turn 1 | . 1 1 Gunslinging . | . . . Exploded 1 | . . 1 Melee . | . . . Uniques/NPCs Destroyed . | . . . Combat | -11 -10 -9 -------- Run | Yrd Mat Mat Hostile Shots Fired 192 | . 60 132 Missed 60 | . 23 37 Damage Taken 1734 | . 517 1217 Core 498 | . 156 342 Absorbed by Shields . | . . . Core Remaining (%) 68 | 100 37 . Volleys Fired 77 | . 42 35 Largest 2 | . 2 2 Hottest 98 | . 60 98 Shots Fired 101 | . 53 48 Gun 93 | . 53 40 Cannon . | . . . Launcher 8 | . . 8 Special . | . . . Kinetic 47 | . 42 5 Thermal 35 | . . 35 Explosive . | . . . Electromagnetic 19 | . 11 8 Robot Hit Streak 12 | . 6 12 Robot Miss Streak 3 | . 3 3 Penetration Max . | . . . Secondary Targets 1 | . . 1 Max Gunslinging Chain 1 | . . 1 Shots Hit Robots 68 | . 33 35 Core Hits 37 | . 16 21 Critical Kills . | . . . Critical Parts Destroyed . | . . . Critical Strikes . | . . . Melee Attacks . | . . . Impact . | . . . Slashing . | . . . Piercing . | . . . Sneak Attacks . | . . . Combat Hostiles . | . . . Follow-up Attacks . | . . . Damage Inflicted 995 | . 344 651 Guns 720 | . 344 376 Cannons . | . . . Explosions 254 | . . 254 Melee . | . . . Ramming 21 | . . 21 Kinetic 264 | . 225 39 Thermal 385 | . . 385 Explosive . | . . . Electromagnetic 325 | . 119 206 Impact . | . . . Slashing . | . . . Piercing . | . . . Highest Corruption . | . . . Average Corruption . | . . . Corruption Purged . | . . . Corruption Blocked . | . . . Overload Shots . | . . . Overflow Damage . | . . . Projectiles . | . . . Explosions . | . . . Melee . | . . . Knockbacks . | . . . Impact . | . . . Kinetic . | . . . Secondary . | . . . Self-Inflicted Damage 5 | . . 5 Shots 1 | . . 1 Rammed 1 | . . 1 Targets Rammed 8 | . 2 6 Kicked 7 | . 2 5 Crushed . | . . . Highest Temperature 154 | . 26 154 Average Temperature 44 | . 9 50 Received Heat Transfer 711 | . 345 366 Siege Activations . | . . . Robots Corrupted . | . . . Combat Hostiles . | . . . Parts Fried . | . . . Impact Corruptions . | . . . Robots Melted . | . . . Combat Hostiles . | . . . Parts Melted 2 | . . 2 Heat Transferred 990 | . . 990 Parts Sabotaged . | . . . Parts Stolen . | . . . Parts Stripped . | . . . Power Chain Reactions 2 | . . 2 Alert | -11 -10 -9 ------- Run | Yrd Mat Mat Peak Influence 361 | . 138 361 Initial 57 | . . 57 Average 121 | . 72 175 Maximum Alert Level 1 | . . 1 Low Security (%) 72 | 100 100 48 Level 1 27 | . . 51 Level 2 . | . . . Level 3 . | . . . Level 4 . | . . . Level 5 . | . . . High Security . | . . . Max Security . | . . . Squads Dispatched 3 | . 1 2 Investigation 2 | . 1 1 Extermination . | . . . Reinforcement 1 | . . 1 Assault . | . . . Garrison . | . . . Intercept . | . . . Searches Triggered . | . . . Construction Impeded . | . . . Haulers Reinforced . | . . . Active Scanning Responses . | . . . Cargo Convoy Interrupts . | . . . Stealth | -11 -10 -9 --------- Run | Yrd Mat Mat Distress Signals 1 | . 1 . Communications Jammed . | . . . Distress Signals . | . . . Times Spotted 32 | . 8 24 Peak Tracking Total 7 | . 4 7 Tactical Retreats 1 | . . 1 Traps | -11 -10 -9 ------- Run | Yrd Mat Mat Traps Triggered 2 | . 1 1 Indirectly . | . . . Trap Hack Attempts . | . . . Triggered . | . . . Disarmed . | . . . Reprogrammed . | . . . Reused . | . . . Traps Extracted . | . . . Installed . | . . . Triggered . | . . . Machines | -11 -10 -9 ---------- Run | Yrd Mat Mat Machines Disabled 2 | . . 2 Max in Single Turn 1 | . . 1 Machines Repaired . | . . . Machines Dismantled . | . . . Machines Sabotaged . | . . . Overloaded Fab Kills . | . . . Hacking | -11 -10 -9 --------- Run | Yrd Mat Mat Machines Accessed 3 | . 2 1 Terminals 3 | . 2 1 Fabricators . | . . . Repair Stations . | . . . Recycling Units . | . . . Scanalyzers . | . . . Garrison Access . | . . . Total Hacks 5 | . 3 2 Successful 2 | . 1 1 Failed 3 | . 2 1 Catastrophic 1 | . . 1 Database Lockouts . | . . . Manual 4 | . 3 1 Terminals 5 | . 3 2 Fabricators . | . . . Repair Stations . | . . . Recycling Units . | . . . Scanalyzers . | . . . Garrison Access . | . . . Terminal Hacks 1 | . . 1 Unreport Threat 1 | . . 1 Fabricator Hacks . | . . . Repair Station Hacks . | . . . Recycling Unit Hacks . | . . . Scanalyzer . | . . . Garrison Access Hacks . | . . . Unauthorized Hacks 1 | . 1 . Terminals 1 | . 1 . Assimilate 1 | . 1 . Fabricators . | . . . Repair Stations . | . . . Recycling Units . | . . . Scanalyzers . | . . . Garrison Access . | . . . Data Cores Recovered . | . . . Used . | . . . Hacking Detections 2 | . 1 1 Full Trace Events . | . . . Feedback Events . | . . . Feedback Blocked . | . . . Robot Schematics Acquired . | . . . Robots Built . | . . . Authchips . | . . . Time . | . . . Total Robot Build Rating . | . . . Part Schematics Acquired . | . . . Parts Built . | . . . Authchips . | . . . Time . | . . . Total Part Build Rating . | . . . Parts Repaired . | . . . Time . | . . . Parts Recycled . | . . . Recycled Matter . | . . . Retrieved Matter . | . . . Retrieved Components . | . . . Parts Scanalyzed . | . . . Part Schematics Acquired . | . . . Parts Damaged . | . . . Bothacking | -11 -10 -9 ------------ Run | Yrd Mat Mat Used RIF Installer . | . . . Robots Hacked . | . . . Non-combat . | . . . Combat . | . . . Robot Hacks Applied . | . . . Relay Couplers Released . | . . . Fabnet Peak Effective % . | . . . Robots Rewired . | . . . Allies Hacked . | . . . Hacks Repelled . | . . . Allies | -11 -10 -9 -------- Run | Yrd Mat Mat Total Allies . | . . . Largest Group . | . . . Highest-Rated Group . | . . . Highest-Rated Ally . | . . . Total Orders . | . . . Ally Attacks . | . . . Total Damage . | . . . Kills . | . . . Allies Corrupted . | . . . Allies Melted . | . . . Intel | -11 -10 -9 ------- Run | Yrd Mat Mat Robot Analysis Total . | . . . Derelict Logs Recovered . | . . . Drone Launches . | . . . Drone Recoveries . | . . . Exploration | -11 -10 -9 ------------- Run | Yrd Mat Mat Turns Passed 902 | 85 329 488 Spaces Moved 569 | 71 187 311 Core 14 | 14 . . Treads . | . . . Legs 492 | 57 187 248 Wheels . | . . . Hover 63 | . . 63 Flight . | . . . Fastest Speed 50 | 50 120 72 Average Speed 115 | 106 120 114 Slowest Speed 190 | 120 120 190 Overloaded Moves . | . . . Propulsion Burnouts . | . . . Robots Hopped . | . . . Cave-ins Triggered . | . . . Exploration Rate (%) 21 | 5 34 26 Regions Visited 2 Branch Regions . Pre-discovered Areas . | . . . Known Exits Taken . | . . . Unknown Exits Taken 2 | 1 1 . Scrap Searched . | . . . Spaces Dug . | . . . Terrain Destroyed 8 | . . 8 Melee . | . . . Projectile . | . . . AOE 8 | . . 8 Terrain Rammed . | . . . Walls Destroyed . | . . . Machines Disabled . | . . . Actions | -11 -10 -9 --------- Run | Yrd Mat Mat Total 717 | 79 245 393 Wait . | . . . Move 567 | 70 186 311 Hop . | . . . Pick Up 20 | 3 7 10 Fast Attach 8 | 3 2 3 Attach 10 | 3 1 6 Detach 2 | . . 2 Swap 14 | . 3 11 Drop 11 | . 2 9 Fire 77 | . 42 35 Melee . | . . . Ram 1 | . . 1 Kick 7 | . 2 5 Crush . | . . . Escape Stasis . | . . . Rewire . | . . . Trap . | . . . Miscellaneous . | . . . Route ------- -11/Scrapyard -10/Materials -9/Materials History --------- Turn | Location | Event 8 | -11/Scrapyard | Discovered new exit (range 16) 86 | -11/Scrapyard | Entered Materials 275 | -10/Materials | Discovered new exit (range 16) 305 | -10/Materials | Build established: Mutant 331 | -10/Materials | Core integrity fell below 50% 415 | -10/Materials | Entered another Materials area 415 | -9/Materials | Evolved 2 slots: Propulsion x1, Utility x1 723 | -9/Materials | Lost 3 parts (1n1u1w) 893 | -9/Materials | Core integrity fell below 50% 903 | -9/Materials | Core integrity fell below 20% 903 | -9/Materials | Self-destructed Last Messages --------------- Hrd. Light Armor Plating destroyed. S-10 Pest destroyed. Switching to secondary target: Y-45 Defender. Flight Unit melted. S-10 Pest destroyed. Critical hit (Burn: +37). Y-45 Defender suffers critical hit (Burn). Backup Propulsion I destroyed. Targeting Computer destroyed. Critical hit (Burn: +37). U-05 Engineer lays Concrete. M-13 Machinist repairs Y-45 Defender. Backup Propulsion I destroyed. Backup Laser I destroyed. Lgt. Ion Engine destroyed. U-05 Engineer lays Concrete. Sml. Laser destroyed. Slammed into Y-45 Defender. Critical hit (Burn: +37). Y-45 Defender destroyed. Map ----- +----------------------------------------------------+ | ?????????????????????????????????????????????? | | ?????????????????????????????????????????????? | | ?????????????????????????????????????????????? | | ?????????????????????????????????????????????? | | ?????????????????????????????????????????????? | | ?????????????????????????????????????????????? | | ????????????????????#????????????????????????? | | ????????????????????# ?????????????????????? | | ????????????????????# ##########???????????? | | ????????????????????# # % #???????????? | | ????????????????????# # """#???????????? | | ????????????????????# # """#???########? | | ????????????????????# # ! """#???# """ #? | | ????????????????????# #* #???# "Y" #? | | ???????????########## # " #???# #? | | ???????????# ! # # T #???# #? | | ???????????# ! # #%" #??## #? | | ???????????# **! # # ####" #? | | ???????????# *!! # ###+#;########""""""## | | ???????????# # ! | | ???????????# """ # !% | | ???????????# """ # | | ???????????# """ + # | | ???????????# # k uu % # | | ???????????##########[*" %% " | | ???????????##########@Y%! Y | | ?????? *%s= % " | | ?????? Yms= # | | ?????? ! % | | ??????? ###+######+####### ############### | | ??????????????????? ??????# #?????????????? | | ??????????????????? ??????# #?????????????? | | ??????????????????? "??????# +?????????????? | | ?????????????????? "??????# #?????????????? | | ?????????????????? ??????# #?????????????? | | ?????????????????? ??????# #?????????????? | | ??????????????????##???????# ??????????????? | | ???????????????????????????# ???????????????? | | ???????????????????????????# ???????????????? | | ???????????????????????????+ ???????????????? | | ????????????????????????????? ???????????????? | | ?????????????????????????????????????????????? | | ?????????????????????????????????????????????? | | ?????????????????????????????????????????????? | | ?????????????????????????????????????????????? | | ?????????????????????????????????????????????? | | ?????????????????????????????????????????????? | | ?????????????????????????????????????????????? | | ?????????????????????????????????????????????? | | ?????????????????????????????????????????????? | +----------------------------------------------------+ Best States ------------- Heat Dissipation 38 Energy Generation 10 Energy Capacity 250 Matter Stores 300 Matter Capacity 300 Sight Range 16 Terrain Scan Density 10 Armor Coverage 150 Evasion (%) 55 Targeting Accuracy 5 Item Schematics ----------------- None Robot Schematics ------------------ None Fabricated ------------ Nothing Alien Tech Used ----------------- None Achievements -------------- True Hacker Challenges ------------ None Game ------ Seed LightpackNetworkCanceller Manual? 0 Play Time 00:16:50 Cumulative 13.0 hours Start 2024.07.02 @ 12:28:24 End 2024.07.02 @ 12:45:05 Sessions 1 Manual Loads 0 Difficulty Rogue Special Mode None Game No. 32 Rogue 32 Adventurer 0 Explorer 0 Win Type - Total 0 Types 0/0/0/0/0/0/0/0/0 Lore% 15 Gallery% 19 Achievement% 16 Wizard Run 0 Options --------- Layout 2 ASCII 0 Keyboard 1 Movement Arrows Keybinds 0 Fullscreen 1 Font 24/Cog Map View 50x44 Zoom Use 0% Tactical HUD 0 Map Filters NONE Filters NONE Steam 1 RUN: 7c747c95-2d05-4d38-901e-1af838b61858